fUSD/lending_fUSD_20241121
["ID","MTS","AMOUNT","RATE_DAILY","PERIOD"]
[342954085,1732218647330,-512.81,0.00038904,11]
[342954086,1732218647340,-500.0,0.00038904,11]
[342954087,1732218647349,-500.0,0.00038904,11]
[342954088,1732218647359,-500.0,0.00038904,11]
[342954089,1732218647368,-506.15,0.00038904,11]
[342954090,1732218647378,-500.0,0.00038904,11]
[342954091,1732218647387,-500.0,0.00038904,11]
[342954092,1732218647397,-643.88,0.00038904,11]
[342954093,1732218647406,-500.0,0.00038904,11]
[342954094,1732218647415,-500.0,0.00038904,11]
[342954095,1732218647427,-500.0,0.00038904,11]
[342954096,1732218647438,-500.0,0.00038904,11]
[342954097,1732218647448,-500.0,0.00038904,11]
[342954098,1732218647457,-500.0,0.00038904,11]
[342954099,1732218647467,-500.0,0.00038904,11]
[342954100,1732218647477,-160.01,0.00038904,11]
[342954101,1732218647486,-500.0,0.00038904,7]
[342954102,1732218647496,-500.0,0.00038904,11]
[342954103,1732218647505,-500.0,0.00038904,11]
[342954104,1732218647514,-500.0,0.00038904,11]
[342954105,1732218647523,-500.0,0.00038904,11]
[342954106,1732218647533,-500.0,0.00038904,11]
[342954107,1732218647543,-2155.38,0.00038904,11]
[342954108,1732218647553,-500.0,0.00038904,11]
[342954109,1732218647563,-500.0,0.00038904,11]
[342954110,1732218647573,-500.0,0.00038904,11]
[342954111,1732218647583,-312.1179614,0.00038904,11]
[342954112,1732218647592,-500.0,0.00038904,11]
[342954113,1732218647601,-500.0,0.00038904,11]
[342954114,1732218647611,-500.0,0.00038904,11]
[342954115,1732218647620,-500.0,0.00038904,11]
[342954116,1732218647630,-516.88,0.00038904,11]
[342954117,1732218647640,-500.0,0.00038904,11]
[342954118,1732218647650,-500.0,0.00038904,11]
[342954119,1732218647659,-500.0,0.00038904,11]
[342954120,1732218647669,-500.0,0.00038904,11]
[342954121,1732218647680,-500.0,0.00038904,11]
[342954122,1732218647690,-478.47,0.00038904,11]
[342954123,1732218647700,-500.0,0.00038904,11]
[342954124,1732218647710,-500.0,0.00038904,11]
[342954125,1732218647720,-321.17,0.00038904,11]
[342954126,1732218647730,-500.0,0.00038904,11]
[342954127,1732218647739,-500.0,0.00038904,11]
[342954128,1732218647748,-479.03436751,0.00038904,11]
[342954129,1732218647759,-615.3490135,0.00038904,11]
[342954130,1732218647768,-287.47,0.00038904,11]
[342954131,1732218647777,-338.78606105,0.00038904,11]
[342954132,1732218647786,-500.0,0.00038904,11]
[342954133,1732218647795,-500.0,0.00038904,11]
[342954134,1732218647804,-500.0,0.00038904,11]
[342954135,1732218647814,-574.75,0.00038904,11]
[342954136,1732218647824,-500.0,0.00038904,11]
[342954137,1732218647833,-500.0,0.00038904,11]
[342954138,1732218647842,-1087.39,0.00038904,11]
[342954139,1732218647852,-219.8,0.00038904,11]
[342954140,1732218647861,-221.84,0.00038904,11]
[342954141,1732218647871,-500.0,0.00038904,11]
[342954142,1732218647880,-509.38,0.00038904,11]
[342954143,1732218647890,-500.0,0.00038904,11]
[342954144,1732218647900,-278.1,0.00038904,11]
[342954145,1732218647909,-500.0,0.00038904,11]
[342954146,1732218647926,-321.74,0.00038904,11]
[342954147,1732218647935,-500.0,0.00038904,11]
[342954148,1732218647945,-500.0,0.00038904,11]
[342954149,1732218647955,-500.0,0.00038904,11]
[342954150,1732218647964,-264.04,0.00038904,11]
[342954151,1732218647974,-500.0,0.00038904,11]
[342954152,1732218647983,-500.0,0.00038904,11]
[342954153,1732218647993,-555.37370743,0.00038904,11]
[342954154,1732218648003,-500.0,0.00038904,11]
[342954155,1732218648013,-500.0,0.00038904,11]
[342954156,1732218648022,-500.0,0.00038904,11]
[342954157,1732218648031,-225.35,0.00038904,11]
[342954158,1732218648042,-432.15,0.00038904,11]
[342954159,1732218648052,-311.45,0.00038904,11]
[342954160,1732218648062,-500.0,0.00038904,11]
[342954161,1732218648072,-500.0,0.00038904,11]
[342954162,1732218648082,-500.0,0.00038904,11]
[342954163,1732218648092,-500.0,0.00038904,11]
[342954164,1732218648105,-500.0,0.00038904,11]
[342954165,1732218648116,-450.0,0.00039,2]
[342954166,1732218648126,-560.0,0.00039071,5]
[342954167,1732218648137,-201.0,0.000391,30]
[342954168,1732218648147,-20000.0,0.00039177,2]
[342954169,1732218648157,-500.0,0.00039177,11]
[342954170,1732218648168,-500.0,0.00039177,11]
[342954171,1732218648180,-500.0,0.00039177,11]
[342954172,1732218648190,-500.0,0.00039177,11]
[342954173,1732218648200,-500.0,0.00039177,11]
[342954174,1732218648210,-500.0,0.00039177,11]
[342954175,1732218648220,-613.93537992,0.00039177,11]
[342954176,1732218648230,-500.0,0.00039177,11]
[342954177,1732218648241,-500.0,0.00039177,11]
[342954178,1732218648251,-500.0,0.00039177,11]
[342954179,1732218648261,-500.0,0.00039177,11]
[342954180,1732218648271,-500.0,0.00039177,11]
[342954181,1732218648280,-500.0,0.00039177,11]
[342954182,1732218648291,-500.0,0.00039177,11]
[342954183,1732218648301,-500.0,0.00039177,11]
[342954184,1732218648311,-500.0,0.00039177,11]
[342954185,1732218648320,-500.0,0.00039177,11]
[342954186,1732218648330,-500.0,0.00039177,11]
[342954187,1732218648339,-500.0,0.00039177,11]
[342954188,1732218648350,-500.0,0.00039177,11]
[342954189,1732218648360,-500.0,0.00039177,11]
[342954190,1732218648370,-500.0,0.00039177,11]
[342954191,1732218648379,-500.0,0.00039177,11]
[342954192,1732218648389,-500.0,0.00039177,11]
[342954193,1732218648399,-500.0,0.00039177,11]
[342954194,1732218648408,-500.0,0.00039177,11]
[342954195,1732218648418,-500.0,0.00039177,11]
[342954196,1732218648429,-500.0,0.00039177,11]
[342954197,1732218648439,-500.0,0.00039178,11]
[342954198,1732218648448,-157.17,0.00039178,11]
[342954199,1732218648458,-500.0,0.00039178,11]
[342954200,1732218648467,-347.26,0.00039178,11]
[342954201,1732218648477,-496.2,0.00039178,11]
[342954202,1732218648486,-167.02,0.00039178,11]
[342954203,1732218648496,-612.95,0.00039178,11]
[342954204,1732218648506,-500.0,0.00039178,11]
[342954205,1732218648515,-500.0,0.00039178,11]
[342954206,1732218648524,-432.21,0.00039178,11]
[342954207,1732218648534,-500.0,0.00039178,11]
[342954208,1732218648544,-500.0,0.00039178,11]
[342954209,1732218648553,-500.0,0.00039178,11]
[342954210,1732218648562,-259.12,0.00039178,11]
[342954211,1732218648571,-500.0,0.00039178,11]
[342954212,1732218648581,-295.76,0.00039178,11]
[342954213,1732218648590,-204.09,0.00039178,11]
[342954214,1732218648600,-500.0,0.00039178,11]
[342954215,1732218648609,-500.0,0.00039178,11]
[342954216,1732218648619,-588.41933177,0.00039178,11]
[342954217,1732218648629,-260.33,0.00039178,11]
[342954218,1732218648639,-500.0,0.00039178,11]
[342954219,1732218648649,-500.0,0.00039178,11]
[342954220,1732218648659,-500.0,0.00039178,11]
[342954221,1732218648669,-491.57436389,0.00039178,11]
[342954222,1732218648681,-391.55,0.00039178,11]
[342954223,1732218648691,-500.0,0.00039178,11]
[342954224,1732218648700,-500.0,0.00039178,11]
[342954225,1732218648710,-500.0,0.00039178,11]
[342954226,1732218648719,-398.12,0.00039178,11]
[342954227,1732218648729,-500.0,0.00039178,11]
[342954228,1732218648739,-636.68,0.00039178,11]
[342954229,1732218648749,-575.04,0.00039178,11]
[342954230,1732218648758,-500.0,0.00039178,11]
[342954231,1732218648768,-398.87595804,0.00039178,11]
[342954232,1732218648777,-211.37,0.00039178,11]
[342954233,1732218648787,-221.37,0.00039178,11]
[342954234,1732218648796,-242.65,0.00039178,11]
[342954235,1732218648807,-535.37,0.00039178,11]
[342954236,1732218648817,-300.0,0.00039178,11]
[342954237,1732218648827,-166.43,0.00039178,11]
[342954238,1732218648837,-500.0,0.00039178,11]
[342954239,1732218648846,-500.0,0.00039178,11]
[342954240,1732218648855,-500.0,0.00039178,11]
[342954241,1732218648865,-500.0,0.00039178,11]
[342954242,1732218648875,-500.0,0.00039178,11]
[342954243,1732218648884,-282.37,0.00039178,11]
[342954244,1732218648893,-552.26137283,0.00039178,11]
[342954245,1732218648903,-500.0,0.00039178,11]
[342954246,1732218648913,-500.0,0.00039178,7]
[342954247,1732218648923,-456.8,0.00039178,11]
[342954248,1732218648934,-500.0,0.00039178,11]
[342954249,1732218648943,-500.0,0.00039178,11]
[342954250,1732218648953,-2155.38,0.00039178,11]
[342954251,1732218648962,-395.51,0.00039178,11]
[342954252,1732218648972,-500.0,0.00039178,11]
[342954253,1732218648981,-223.23,0.00039178,11]
[342954254,1732218648990,-547.84,0.00039178,11]
[342954255,1732218649000,-572.24,0.00039178,11]
[342954256,1732218649010,-164.84,0.00039178,11]
[342954257,1732218649020,-470.64,0.00039178,11]
[342954258,1732218649030,-500.0,0.00039178,11]
[342954259,1732218649041,-315.42,0.00039178,11]
[342954260,1732218649051,-500.0,0.00039178,11]
[342954261,1732218649061,-432.21,0.00039178,11]
[342954262,1732218649072,-500.0,0.00039178,11]
[342954263,1732218649082,-500.0,0.00039178,11]
[342954264,1732218649091,-500.0,0.00039178,11]
[342954265,1732218649103,-500.0,0.00039178,11]
[342954266,1732218649113,-404.86,0.00039178,11]
[342954267,1732218649123,-500.0,0.00039178,11]
[342954268,1732218649133,-295.24,0.00039178,11]
[342954269,1732218649143,-1087.39,0.00039178,11]
[342954270,1732218649153,-302.62,0.00039178,11]
[342954271,1732218649163,-500.0,0.00039178,11]
[342954272,1732218649173,-500.0,0.00039178,11]
[342954273,1732218649187,-500.0,0.00039178,11]
[342954274,1732218649197,-556.06,0.00039178,11]
[342954275,1732218649207,-500.0,0.00039178,11]
[342954276,1732218649217,-648.5,0.00039178,11]
[342954277,1732218649227,-189.67,0.00039178,11]
[342954278,1732218649237,-500.0,0.00039178,11]
[342954279,1732218649246,-500.0,0.00039178,11]
[342954280,1732218649256,-500.0,0.00039178,11]
[342954281,1732218649265,-451.28,0.00039178,11]
[342954282,1732218649274,-500.0,0.00039178,11]
[342954283,1732218649284,-500.0,0.00039178,11]
[342954284,1732218649294,-500.0,0.00039178,11]
[342954285,1732218649303,-1000.0,0.00039221,2]
[342954286,1732218649313,-4399.0,0.000393,3]
[342954287,1732218649322,-815.61888048,0.00039433,15]
[342954288,1732218649331,-9835.97692944,0.00039433,15]
[342954289,1732218649341,-500.0,0.00039451,11]
[342954290,1732218649350,-500.0,0.00039451,11]
[342954291,1732218649359,-500.0,0.00039451,11]
[342954292,1732218649369,-500.0,0.00039451,11]
[342954293,1732218649378,-500.0,0.00039451,11]
[342954294,1732218649388,-500.0,0.00039451,11]
[342954295,1732218649397,-585.6508864,0.00039451,11]
[342954296,1732218649407,-500.0,0.00039451,11]
[342954297,1732218649416,-500.0,0.00039451,11]
[342954298,1732218649426,-500.0,0.00039451,11]
[342954299,1732218649436,-500.0,0.00039451,11]
[342954300,1732218649446,-500.0,0.00039451,11]
[342954301,1732218649455,-500.0,0.00039451,11]
[342954302,1732218649465,-500.0,0.00039451,11]
[342954303,1732218649474,-500.0,0.00039451,11]
[342954304,1732218649528,-500.0,0.00039452,11]
[342954305,1732218649539,-323.34,0.00039452,11]
[342954306,1732218649548,-500.0,0.00039452,11]
[342954307,1732218649558,-461.39,0.00039452,11]
[342954308,1732218649568,-500.0,0.00039452,11]
[342954309,1732218649577,-500.0,0.00039452,11]
[342954310,1732218649586,-352.28,0.00039452,11]
[342954311,1732218649596,-369.64,0.00039452,11]
[342954312,1732218649605,-373.99,0.00039452,11]
[342954313,1732218649615,-500.0,0.00039452,11]
[342954314,1732218649624,-500.0,0.00039452,11]
[342954315,1732218649633,-500.0,0.00039452,11]
[342954316,1732218649643,-478.14,0.00039452,11]
[342954317,1732218649652,-500.0,0.00039452,11]
[342954318,1732218649661,-500.0,0.00039452,11]
[342954319,1732218649671,-500.0,0.00039452,11]
[342954320,1732218649683,-416.26,0.00039452,11]
[342954321,1732218649692,-535.37,0.00039452,11]
[342954322,1732218649701,-412.78,0.00039452,11]
[342954323,1732218649711,-500.0,0.00039452,11]
[342954324,1732218649720,-500.0,0.00039452,11]
[342954325,1732218649730,-500.0,0.00039452,11]
[342954326,1732218649739,-357.02091354,0.00039452,11]
[342954327,1732218649749,-500.0,0.00039452,11]
[342954328,1732218649759,-500.0,0.00039452,11]
[342954329,1732218649768,-292.96,0.00039452,7]
[342954330,1732218649778,-500.0,0.00039452,11]
[342954331,1732218649787,-500.0,0.00039452,11]
[342954332,1732218649797,-2155.38,0.00039452,11]
[342954333,1732218649806,-500.0,0.00039452,11]
[342954334,1732218649815,-276.59823195,0.00039452,11]
[342954335,1732218649825,-357.8,0.00039452,11]
[342954336,1732218649834,-500.0,0.00039452,11]
[342954337,1732218649844,-500.0,0.00039452,11]
[342954338,1732218649853,-500.0,0.00039452,11]
[342954339,1732218649862,-1087.39,0.00039452,11]
[342954340,1732218649871,-500.0,0.00039452,11]
[342954341,1732218649881,-500.0,0.00039452,11]
[342954342,1732218649890,-500.0,0.00039452,11]
[342954343,1732218649900,-500.0,0.00039452,11]
[342954344,1732218649909,-318.94,0.00039452,11]
[342954345,1732218649918,-500.0,0.00039452,11]
[342954346,1732218649929,-179.77003,0.00039452,11]
[342954347,1732218649939,-272.67638707,0.00039452,11]
[342954348,1732218649949,-500.0,0.00039452,11]
[342954349,1732218649959,-500.0,0.00039452,11]
[342954350,1732218649969,-1710.1,0.00039628,2]
[342954351,1732218649978,-500.0,0.00039725,11]
[342954352,1732218649988,-500.0,0.00039725,11]
[342954353,1732218649997,-500.0,0.00039725,11]
[342954354,1732218650006,-589.28,0.00039725,11]
[342954355,1732218650016,-500.0,0.00039725,11]
[342954356,1732218650025,-569.44,0.00039725,11]
[342954357,1732218650036,-387.78,0.00039726,11]
[342954358,1732218650045,-417.55,0.00039726,11]
[342954359,1732218650054,-500.0,0.00039726,11]
[342954360,1732218650064,-500.0,0.00039726,11]
[342954361,1732218650073,-500.0,0.00039726,11]
[342954362,1732218650082,-500.0,0.00039726,11]
[342954363,1732218650093,-500.0,0.00039726,11]
[342954364,1732218650108,-307.33,0.00039726,11]
[342954365,1732218650118,-500.0,0.00039726,11]
[342954366,1732218650127,-500.0,0.00039726,11]
[342954367,1732218650139,-535.37,0.00039726,11]
[342954368,1732218650149,-299.82,0.00039726,11]
[342954369,1732218650158,-500.0,0.00039726,11]
[342954370,1732218650169,-500.0,0.00039726,11]
[342954371,1732218650182,-500.0,0.00039726,11]
[342954372,1732218650192,-500.0,0.00039726,11]
[342954373,1732218650201,-500.0,0.00039726,11]
[342954374,1732218650211,-2155.38,0.00039726,11]
[342954375,1732218650220,-500.0,0.00039726,11]
[342954376,1732218650230,-473.17,0.00039726,11]
[342954377,1732218650239,-500.0,0.00039726,11]
[342954378,1732218650248,-500.0,0.00039726,11]
[342954379,1732218650258,-1087.39,0.00039726,11]
[342954380,1732218650267,-500.0,0.00039726,11]
[342954381,1732218650277,-500.0,0.00039726,11]
[342954382,1732218650286,-500.0,0.00039726,11]
[342954383,1732218650295,-500.0,0.00039726,11]
[342954384,1732218650305,-500.0,0.00039726,11]
[342954385,1732218650315,-500.0,0.00039726,11]
[342954386,1732218650325,-593.19,0.00039726,11]
[342954387,1732218650335,-200.0,0.00039857,2]
[342954388,1732218650344,-500.0,0.00039999,11]
[342954389,1732218650354,-559.28,0.00039999,11]
[342954390,1732218650364,-641.64896712,0.0004,11]
[342954391,1732218650375,-500.0,0.0004,11]
[342954392,1732218650387,-500.0,0.0004,11]
[342954393,1732218650397,-555.53,0.0004,11]
[342954394,1732218650407,-500.0,0.0004,11]
[342954395,1732218650416,-500.0,0.0004,11]
[342954396,1732218650427,-293.14,0.0004,11]
[342954397,1732218650438,-1490.91,0.0004,120]
[342954398,1732218650448,-535.37,0.0004,11]
[342954399,1732218650458,-500.0,0.0004,11]
[342954400,1732218650468,-500.0,0.0004,11]
[342954401,1732218650478,-500.0,0.0004,11]
[342954402,1732218650488,-500.0,0.0004,11]
[342954403,1732218650498,-500.0,0.0004,11]
[342954404,1732218650509,-500.0,0.0004,120]
[342954405,1732218650518,-2155.38,0.0004,11]
[342954406,1732218650528,-599.67,0.0004,11]
[342954407,1732218650538,-403.24721042,0.0004,11]
[342954408,1732218650548,-156.75,0.0004,11]
[342954409,1732218650558,-1087.39,0.0004,11]
[342954410,1732218650568,-500.0,0.0004,11]
[342954411,1732218650578,-500.0,0.0004,11]
[342954412,1732218650588,-500.0,0.0004,11]
[342954413,1732218650599,-500.0,0.0004,11]
[342954414,1732218650609,-321.98,0.0004,11]
[342954415,1732218650619,-500.0,0.0004,11]
[342954416,1732218650630,-150.43,0.00040046,2]
[342954417,1732218650640,-280.0,0.00040146,60]
[342954418,1732218650650,-629.7,0.00040204,120]
[342954419,1732218650659,-201.0,0.0004021,30]
[342954420,1732218650670,-356.4,0.00040273,11]
[342954421,1732218650681,-500.0,0.00040273,11]
[342954422,1732218650691,-500.0,0.00040273,11]
[342954423,1732218650701,-500.0,0.00040273,11]
[342954424,1732218650711,-500.0,0.00040273,11]
[342954425,1732218650721,-535.37,0.00040273,11]
[342954426,1732218650731,-500.0,0.00040273,11]
[342954427,1732218650742,-500.0,0.00040273,11]
[342954428,1732218650752,-500.0,0.00040273,11]
[342954429,1732218650762,-500.0,0.00040273,11]
[342954430,1732218650772,-500.0,0.00040273,11]
[342954431,1732218650782,-2155.38,0.00040273,11]
[342954432,1732218650793,-1087.39,0.00040273,11]
[342954433,1732218650802,-500.0,0.00040273,11]
[342954434,1732218650813,-500.0,0.00040273,11]
[342954435,1732218650823,-500.0,0.00040273,11]
[342954436,1732218650833,-500.0,0.00040273,11]
[342954437,1732218650843,-500.0,0.00040273,11]
[342954438,1732218650854,-500.0,0.00040433,5]
[342954439,1732218650864,-233.89,0.00040547,11]
[342954440,1732218650875,-500.0,0.00040547,11]
[342954441,1732218650885,-237.17,0.00040547,11]
[342954442,1732218650895,-500.0,0.00040547,11]
[342954443,1732218650905,-535.37,0.00040547,11]
[342954444,1732218650915,-545.39,0.00040547,11]
[342954445,1732218650925,-500.0,0.00040547,11]
[342954446,1732218650937,-500.0,0.00040547,11]
[342954447,1732218650946,-500.0,0.00040547,11]
[342954448,1732218650956,-500.0,0.00040547,11]
[342954449,1732218650967,-2155.38,0.00040547,11]
[342954450,1732218650977,-1087.39,0.00040547,11]
[342954451,1732218650987,-500.0,0.00040547,11]
[342954452,1732218650998,-500.0,0.00040547,11]
[342954453,1732218651008,-500.0,0.00040547,11]
[342954454,1732218651018,-494.8,0.00040547,11]
[342954455,1732218651029,-500.0,0.00040547,11]
[342954456,1732218651038,-151.0,0.00040644,2]
[342954457,1732218651049,-1490.91,0.00040657,120]
[342954458,1732218651059,-1000.0,0.00040667,2]
[342954459,1732218651069,-815.61888048,0.00040717,15]
[342954460,1732218651080,-9835.97692944,0.00040717,15]
[342954461,1732218651091,-500.0,0.00040821,11]
[342954462,1732218651103,-500.0,0.00040821,11]
[342954463,1732218651113,-535.37,0.00040821,11]
[342954464,1732218651124,-500.0,0.00040821,11]
[342954465,1732218651135,-500.0,0.00040821,11]
[342954466,1732218651146,-445.6,0.00040821,11]
[342954467,1732218651157,-500.0,0.00040821,11]
[342954468,1732218651167,-2155.38,0.00040821,11]
[342954469,1732218651181,-1087.39,0.00040821,11]
[342954470,1732218651191,-153.48,0.00040821,11]
[342954471,1732218651202,-500.0,0.00040821,11]
[342954472,1732218651212,-500.0,0.00040821,11]
[342954473,1732218651222,-500.0,0.00040821,11]
[342954474,1732218651232,-4400.0,0.000409,14]
[342954475,1732218651243,-194.37,0.00040952,2]
[342954476,1732218651254,-382.80630794,0.00040981,5]
[342954477,1732218651265,-500.0,0.00041,2]
[342954478,1732218651276,-500.0,0.00041095,11]
[342954479,1732218651286,-432.43,0.00041095,11]
[342954480,1732218651297,-535.37,0.00041095,11]
[342954481,1732218651307,-500.0,0.00041095,11]
[342954482,1732218651317,-500.0,0.00041095,11]
[342954483,1732218651328,-500.0,0.00041095,11]
[342954484,1732218651338,-2155.38,0.00041095,11]
[342954485,1732218651353,-1087.39,0.00041095,11]
[342954486,1732218651363,-500.0,0.00041095,11]
[342954487,1732218651373,-500.0,0.00041095,11]
[342954488,1732218651384,-500.0,0.00041095,11]
[342954489,1732218651394,-185.0,0.00041096,2]
[342954490,1732218651405,-198.0,0.000411,2]
[342954491,1732218651416,-564.0,0.00041102,2]
[342954492,1732218651431,-1256.0,0.00041102,2]
[342954493,1732218651445,-629.0,0.00041102,2]
[342954494,1732218651458,-1927.0,0.00041102,2]
[342954495,1732218651470,-815.0,0.00041102,2]
[342954496,1732218651483,-1260.0,0.00041102,2]
[342954497,1732218651493,-3490.0,0.00041102,2]
[342954498,1732218651505,-919.0,0.00041102,2]
[342954499,1732218651518,-150.0,0.00041102,2]
[342954500,1732218651531,-5940.0,0.00041102,2]
[342954501,1732218651543,-166.1,0.00041102,2]
[342954502,1732218651556,-226.0,0.00041102,2]
[342954503,1732218651568,-281.23,0.00041102,2]
[342954504,1732218651580,-13657.0,0.00041102,2]
[342954505,1732218651592,-156.0,0.00041102,2]
[342954506,1732218651603,-150.0,0.00041102,2]
[342954507,1732218651615,-291.473,0.00041102,2]
[342954508,1732218651625,-200.0,0.00041102,2]
[342954509,1732218651635,-173.351,0.00041102,2]
[342954510,1732218651648,-1162.0,0.00041102,2]
[342954511,1732218651660,-150.0,0.00041102,2]
[342954512,1732218651673,-250.0,0.00041102,2]
[342954513,1732218651686,-1093.0,0.00041102,2]
[342954514,1732218651698,-2000.0,0.00041311,120]
[342954515,1732218651709,-1490.91,0.00041315,120]
[342954516,1732218651722,-201.0,0.0004132,30]
[342954517,1732218651734,-523.38508061,0.00041369,11]
[342954518,1732218651746,-535.37,0.00041369,11]
[342954519,1732218651759,-500.0,0.00041369,11]
[342954520,1732218651771,-500.0,0.00041369,11]
[342954521,1732218651782,-500.0,0.00041369,11]
[342954522,1732218651795,-2155.38,0.00041369,11]
[342954523,1732218651808,-1087.39,0.00041369,11]
[342954524,1732218651819,-500.0,0.00041369,11]
[342954525,1732218651832,-500.0,0.00041369,11]
[342954526,1732218651842,-500.0,0.00041369,11]
[342954527,1732218651855,-794.41,0.00041542,120]
[342954528,1732218651866,-535.37,0.00041643,11]
[342954529,1732218651879,-500.0,0.00041643,11]
[342954530,1732218651891,-500.0,0.00041643,11]
[342954531,1732218651904,-500.0,0.00041643,11]
[342954532,1732218651916,-2155.38,0.00041643,11]
[342954533,1732218651930,-1087.39,0.00041643,11]
[342954534,1732218651942,-500.0,0.00041643,11]
[342954535,1732218651952,-500.0,0.00041643,11]
[342954536,1732218651962,-500.0,0.00041643,11]
[342954537,1732218651973,-227.0,0.00041682,120]
[342954538,1732218651984,-783.0,0.00041828,5]
[342954539,1732218651997,-500.0,0.0004184,120]
[342954540,1732218652011,-200.0,0.0004184,120]
[342954541,1732218652021,-500.0,0.00041849,120]
[342954542,1732218652032,-1710.1,0.00041892,2]
[342954543,1732218652042,-774.19,0.000419,2]
[342954544,1732218652053,-535.37,0.00041917,11]
[342954545,1732218652065,-500.0,0.00041917,11]
[342954546,1732218652078,-421.31114016,0.00041917,11]
[342954547,1732218652092,-500.0,0.00041917,11]
[342954548,1732218652107,-2155.38,0.00041917,11]
[342954549,1732218652117,-1087.39,0.00041917,11]
[342954550,1732218652128,-500.0,0.00041917,11]
[342954551,1732218652140,-500.0,0.00041917,11]
[342954552,1732218652150,-500.0,0.00041917,11]
[342954553,1732218652162,-2000.0,0.00041968,120]
[342954554,1732218652174,-1490.91,0.00041972,120]
[342954555,1732218652187,-1120.68,0.00041973,120]
[342954556,1732218652199,-815.61888048,0.00042,15]
[342954557,1732218652210,-450.0,0.00042,120]
[342954558,1732218652221,-9835.97692944,0.00042,15]
[342954559,1732218652231,-1002.30024596,0.0004214,5]
[342954560,1732218652243,-535.37,0.00042191,11]
[342954561,1732218652254,-500.0,0.00042191,11]
[342954562,1732218652266,-157.80403826,0.00042191,11]
[342954563,1732218652277,-2155.38,0.00042191,11]
[342954564,1732218652288,-1087.39,0.00042191,11]
[342954565,1732218652300,-483.20934127,0.00042191,11]
[342954566,1732218652312,-500.0,0.00042191,11]
[342954567,1732218652323,-622.0856033,0.00042191,11]
[342954568,1732218652334,-307.16,0.000424,60]
[342954569,1732218652345,-1003.26,0.000424,60]
[342954570,1732218652356,-201.0,0.0004244,30]
[342954571,1732218652367,-535.37,0.00042465,11]
[342954572,1732218652379,-412.63,0.00042465,11]
[342954573,1732218652390,-2155.38,0.00042465,11]
[342954574,1732218652401,-1087.39,0.00042465,11]
[342954575,1732218652412,-500.0,0.00042465,11]
[342954576,1732218652423,-152.4,0.000425,33]
[342954577,1732218652443,-152.4,0.000425,33]
[342954578,1732218652455,-152.4,0.000425,33]
[342954579,1732218652466,-152.4,0.000425,33]
[342954580,1732218652477,-152.4,0.000425,33]
[342954581,1732218652488,-2000.0,0.00042625,120]
[342954582,1732218652499,-1490.91,0.0004263,120]
[342954583,1732218652510,-535.37,0.00042739,11]
[342954584,1732218652520,-2155.38,0.00042739,11]